Cogmind - Beta 12 @@@ ROGUE MODE // 2023.04.25 @ 16:18:35 Player: omewwes Result: Destroyed by H-77 Assassin with Coil Gun Performance ------------- Evolutions (7) 3500 Regions Visited (27) 5400 Robots Destroyed (212) 1060 Value Destroyed (11088) 11088 Prototype IDs (63) 1260 Alien Tech Used (0) 0 Bonus (9496) 9496 TOTAL SCORE: 31804 Bonus ------- Triggered Max Security 1000 High Alert Combat Kills 1603 Follower Combat Kills 1867 Entered Garrisons 200 Entered DSFs 500 Network Hubs Disabled 200 Aligned with FarCom 300 Destroyed Z-Imprinter 1000 Met Warlord at Base 500 MAIN.C Attacked Warlord 500 Met R17 at Cetus 500 Met R17 at Research 2000 Friendly Fire -674 Cogmind --------- Core Integrity 0/1300 Matter 300/300 Energy 99/100 System Corruption 1% Temperature Cool (0) Movement Core (50) Location -3/Quarantine Parts ------- > --- POWER (1) -------- (None) > --- PROPULSION (4) --- (None) > --- UTILITY (10) ----- (None) > --- WEAPON (6) ------- (None) > --- INVENTORY (5) ---- Improved Phase Shifter Advanced Shield Generator Gamma Bomb Array Advanced Remote Datajack Self-destruct Interrupter (50) Peak State ------------ > --- POWER ------------ Particle Reactor > --- PROPULSION ------- Enhanced Flexi-carbon Leg Myomer Leg Myomer Leg Biometal Leg > --- UTILITY ---------- Large Storage Unit Improved Melee Analysis Suite Improved Armor Integrity Analyzer Improved Transmission Jammer Centrium Medium Armor Plating Graphene Brace Improved Hacking Suite Improved Hacking Suite Stealth Drone Bay > --- WEAPON ----------- Improved Plasma Cutter Powered Hammer Scythe Axe Power Sword Vibroblade > --- INVENTORY -------- Light Antimatter Reactor Myomer Leg Biometal Leg Nanoactuators Nanoactuators Improved Actuator Array Improved Phase Shifter Centrium Medium Armor Plating Centrium Medium Armor Plating Centrium Medium Armor Plating Advanced Shield Generator Vortex Driver Advanced Remote Datajack Self-destruct Interrupter [Rating: 136] Favorites ----------- Power Ion Engine Engine Ion Engine Power Core Light Nuclear Core Reactor Particle Reactor Propulsion Improved Titanium Leg Treads Improved Heavy Treads Leg Improved Titanium Leg Wheel Centrium Wheel Hover Unit Zionite Glidesys II Utility Large Storage Unit Device Improved Transmission Jammer Storage Large Storage Unit Processor Improved Melee Analysis Suite Hackware Makeshift Hacking Suite Protection Improved Medium Armor Plating Weapon Power Maul Energy Gun Small Laser Energy Cannon Vortex Driver Ballistic Gun Gauss Rifle Ballistic Cannon Heavy Flak Cannon Launcher Rocket Launcher Special Weapon Improved Plasma Cutter Impact Weapon Power Maul Slashing Weapon Great Axe Piercing Weapon CR-A16's Pointy Stick Build | -11 -10 -10 -10 -9 -8 -8 -8 -7 -7 -7 -7 -7 -6 -6 -6 -5 -5 -5 -5 -4 -4 -4 -4 -4 -4 -3 -3 ------- Run | Jun Mat Min Exi Min Mat Gar Mat Fac Low Low Zio Dee Pro Fac DSF Fac Upp Upp War Pro Fac Ext Cet Arc Hub Res Qua Slots Evolved 14 | . . . . . 4 . . 2 . . . . . 2 . 2 . . . . 2 . . . . 2 . Power . | . . . . . . . . . . . . . . . . . . . . . . . . . . . . Propulsion 2 | . . . . . 1 . . . . . . . . . . 1 . . . . . . . . . . . Utility 8 | . . . . . 1 . . 2 . . . . . 1 . . . . . . 2 . . . . 2 . Weapon 4 | . . . . . 2 . . . . . . . . 1 . 1 . . . . . . . . . . . Parts Attached 318 | . 6 9 1 1 8 14 12 16 1 10 1 13 8 13 15 20 4 2 12 11 54 38 8 6 6 20 9 Power 26 | . . 1 . . . 1 . 1 . 2 . . 1 1 1 1 1 . . 1 8 3 . 1 . 1 2 Engine 6 | . . 1 . . . . . . . 1 . . 1 1 1 . . . . 1 . . . . . . . Core 9 | . . . . . . 1 . 1 . 1 . . . . . 1 1 . . . 3 1 . . . . . Reactor 11 | . . . . . . . . . . . . . . . . . . . . . 5 2 . 1 . 1 2 Propulsion 79 | . 2 3 1 . 2 2 6 2 . . . 4 5 3 5 1 . . 1 1 17 11 1 1 4 5 2 Treads 1 | . . . . . . . . . . . . . . . . . . . . . 1 . . . . . . Leg 70 | . 2 3 1 . 2 2 6 2 . . . 3 4 3 5 1 . . 1 1 10 11 1 1 4 5 2 Wheel 6 | . . . . . . . . . . . . . . . . . . . . . 6 . . . . . . Hover 2 | . . . . . . . . . . . . 1 1 . . . . . . . . . . . . . . Flight . | . . . . . . . . . . . . . . . . . . . . . . . . . . . . Utility 104 | . 3 2 . 1 2 2 5 2 1 1 1 8 2 7 5 10 2 . 5 6 17 4 3 1 1 9 4 Device 51 | . 1 2 . 1 2 . . 2 . . . 4 . 4 1 5 1 . 3 4 11 2 1 . 1 5 1 Storage 8 | . 1 . . . . 2 1 . . . . . . 1 . 1 . . . . 2 . . . . . . Processor 10 | . 1 . . . . . 3 . . 1 . . 1 . 1 1 . . . . 2 . . . . . . Hackware 6 | . . . . . . . . . . . . 2 . . . . . . 1 . 1 . . 1 . 1 . Protection 29 | . . . . . . . 1 . 1 . 1 2 1 2 3 3 1 . 1 2 1 2 2 . . 3 3 Artifact . | . . . . . . . . . . . . . . . . . . . . . . . . . . . . Weapon 109 | . 1 3 . . 4 9 1 11 . 7 . 1 . 2 4 8 1 2 6 3 12 20 4 3 1 5 1 Energy Gun 5 | . . 2 . . . . . 1 . . . . . . . . . . . . . . 1 1 . . . Energy Cannon 4 | . . . . . . . . . . . . . . . . . . . 1 . 1 . . . . 1 1 Ballistic Gun 17 | . 1 1 . . 4 7 1 3 . . . . . . . . . . . . . . . . . . . Ballistic Cannon 2 | . . . . . . . . . . . . . . 2 . . . . . . . . . . . . . Launcher 11 | . . . . . . 2 . 2 . 3 . . . . . 1 . . . 1 . 1 1 . . . . Special Weapon 10 | . . . . . . . . . . . . . . . . . . . 2 . . 5 . 2 . 1 . Impact Weapon 11 | . . . . . . . . 1 . . . . . . . 6 . . 1 . 2 . . . . 1 . Slashing Weapon 37 | . . . . . . . . 4 . 4 . . . . 4 1 1 . . 1 7 11 2 . 1 1 . Piercing Weapon 12 | . . . . . . . . . . . . 1 . . . . . 2 2 1 2 3 . . . 1 . Special Melee Weapon . | . . . . . . . . . . . . . . . . . . . . . . . . . . . . Unidentified Prototypes 18 | . . . . 1 . . . 1 . . . 4 . . . 2 . . 5 . 2 . 1 . 1 1 . Parts Lost 87 | . . 5 . . . . 1 3 . 4 . 5 7 . 4 1 1 . . 8 15 7 2 1 7 1 15 Power 15 | . . . . . . . . 1 . 2 . . 2 . 1 . 1 . . 1 3 1 . . . . 3 Propulsion 19 | . . 2 . . . . . . . . . 1 3 . . . . . . 1 2 2 . . 4 . 4 Utility 28 | . . . . . . . 1 . . 2 . 3 1 . 2 1 . . . 3 8 2 . . 1 . 4 Weapon 25 | . . 3 . . . . . 2 . . . 1 1 . 1 . . . . 3 2 2 2 1 2 1 4 Highest Loss Streak 8 | . . 3 . . . . 1 2 . 3 . 3 5 . 2 1 1 . . 3 8 3 2 1 6 1 8 To Critical Strikes . | . . . . . . . . . . . . . . . . . . . . . . . . . . . . Average Slot Usage (%) 94 | . 99 99 100 100 87 89 99 99 100 96 85 95 82 82 96 99 99 97 100 97 86 99 99 99 88 88 68 Engine 2 | . 14 14 14 14 9 2 . . . 1 7 7 6 1 5 . . . . 3 . . . . . . . Core 2 | . . . . . . 6 9 6 7 5 . . . . . 4 4 5 5 1 1 . 5 . . . . Leg 21 | . 28 28 28 28 27 27 27 23 23 23 23 22 16 19 20 23 23 23 23 23 11 21 21 21 19 18 13 Device 8 | . 1 11 14 14 9 9 3 15 7 5 . 3 . . 6 4 5 5 4 6 14 11 8 10 11 17 14 Storage 6 | . 14 14 14 14 9 10 9 7 7 7 7 3 . 3 6 5 5 5 5 5 5 5 5 5 5 4 2 Processor 9 | . 12 2 . . . . 6 7 7 8 15 15 18 15 10 11 11 11 11 11 13 10 10 10 10 9 5 Hackware 4 | . . . . . . . . . . . . 7 14 6 6 5 5 5 6 6 5 10 10 10 8 9 2 Protection 3 | . . . . . . . 8 7 14 12 . 3 . 11 8 5 4 5 3 3 1 2 6 5 5 3 6 Energy Gun 1 | . . 10 14 14 1 . . 1 . . . . . . . . . . . . . . 1 4 1 . . Ballistic Gun 7 | . 28 16 14 14 31 32 35 24 . . . . . . . . . . . . . . . . . . . Impact Weapon 5 | . . . . . . . . . . . . . . . . 22 23 23 22 20 9 . . . . . 2 Slashing Weapon 11 | . . . . . . . . . 30 29 30 25 16 13 29 11 10 1 . . 12 27 22 21 19 16 10 Piercing Weapon 1 | . . . . . . . . . . . . 4 4 . . . . 7 10 7 1 2 5 1 . . 2 Naked Turns 68 | . . . . . . . . . . . . . . . . . . . . . . . . . . . 68 Heaviest Build 80 | 12 18 20 18 25 29 39 55 46 48 48 35 43 20 59 60 61 60 53 66 63 53 68 75 69 67 78 80 Greatest Support 106 | 20 20 20 20 20 30 70 75 60 60 60 60 80 80 80 78 78 78 78 92 92 95 95 85 85 98 106 103 Greatest Overweight (x) 2 | . . . . 1 . 1 . . . . . . . . 1 . . . . . 2 . . . 1 . . Average Overweight (x) . | . . . . . . . . . . . . . . . . . . . . . . . . . . . . Largest Inventory Capacity 15 | 8 10 10 10 10 10 15 15 10 10 10 10 10 5 15 15 15 15 15 15 15 15 15 15 15 15 15 15 Average Capacity 12 | 8 9 10 10 10 10 10 10 10 10 10 10 7 5 10 15 15 15 15 15 15 14 15 15 15 15 15 12 Most Carried 15 | 6 7 7 8 9 10 14 14 10 10 10 10 10 5 12 15 15 15 15 15 15 15 15 15 15 15 15 13 Average Carried 10 | 4 3 6 6 7 8 10 10 9 9 9 9 7 4 6 12 14 14 14 14 12 10 13 14 14 14 12 8 Final Capacity 15 | 8 10 10 10 10 10 15 10 10 10 10 10 5 5 15 15 15 15 15 15 15 15 15 15 15 15 15 5 Final Carried 15 | 1 7 6 7 9 8 13 10 10 9 9 10 5 4 10 14 15 15 14 15 12 13 15 15 14 14 13 5 Class Distribution -------------------- 35% | Mutant 26% | Scavenger-Mutant 18% | Hacker-Mutant 7% | Gunner 5% | Commander-Mutant 4% | Skirmisher Dominant Class ---------------- Mutant | -10/Materials Scavenger-Mutant | -10/Mines Mutant | -10/Exiles Mutant | -9/Mines Skirmisher | -8/Materials Commander-Mutant | -8/Garrison Commander-Skirmisher | -8/Materials Gunner | -7/Factory Mutant | -7/Lower Caves Mutant | -7/Lower Caves Mutant | -7/Zion Hacker-Mutant | -7/Deep Caves Scavenger-Mutant | -6/Proximity Caves Mutant | -6/Factory Scavenger-Mutant | -6/DSF Mutant | -5/Factory Mutant | -5/Upper Caves Mutant | -5/Upper Caves Commander-Mutant | -5/Warlord Hacker-Mutant | -4/Proximity Caves Hacker-Mutant | -4/Factory Scavenger-Mutant | -4/Extension Scavenger-Mutant | -4/Cetus Scavenger-Mutant | -4/Archives Scavenger-Mutant | -4/Hub_04(d) Scavenger-Mutant | -3/Research Scavenger-Mutant | -3/Quarantine Resources | -11 -10 -10 -10 -9 -8 -8 -8 -7 -7 -7 -7 -7 -6 -6 -6 -5 -5 -5 -5 -4 -4 -4 -4 -4 -4 -3 -3 ----------- Run | Jun Mat Min Exi Min Mat Gar Mat Fac Low Low Zio Dee Pro Fac DSF Fac Upp Upp War Pro Fac Ext Cet Arc Hub Res Qua Matter Collected 6039 | 200 181 148 . . 142 463 662 507 283 243 79 87 105 72 362 195 40 . 214 124 567 768 168 97 86 130 116 Remotely . | . . . . . . . . . . . . . . . . . . . . . . . . . . . . Salvage Created 11899 | . 359 338 . . 142 163 475 396 94 244 134 14 319 12 436 878 321 44 . 700 2106 1205 850 507 403 502 1257 Parts 467 | . 18 25 . . 6 7 24 20 6 17 2 . 8 4 30 29 8 2 . 12 82 36 36 31 12 20 32 Haulers Intercepted 10 | . 1 . . . . . 3 1 . . . . . . . 1 . . . . 1 1 . . 1 1 . Recyclers Shooed 2 | . . 1 . . . . . . . . . . . . . . . . . . . 1 . . . . . Parts Field Recycled . | . . . . . . . . . . . . . . . . . . . . . . . . . . . . Retrieved Matter . | . . . . . . . . . . . . . . . . . . . . . . . . . . . . Parts Self-Destructed 44 | . . . . . . . . . 4 12 2 . 6 . . . 7 2 . 11 . . . . . . . Prevented 9 | . . . . . . . . . . . . . . . . . . 1 . 8 . . . . . . . Kills | -11 -10 -10 -10 -9 -8 -8 -8 -7 -7 -7 -7 -7 -6 -6 -6 -5 -5 -5 -5 -4 -4 -4 -4 -4 -4 -3 -3 ------- Run | Jun Mat Min Exi Min Mat Gar Mat Fac Low Low Zio Dee Pro Fac DSF Fac Upp Upp War Pro Fac Ext Cet Arc Hub Res Qua Combat Hostiles Destroyed 163 | . 9 11 . . 4 1 4 5 1 10 . 1 5 . 9 6 6 1 . 11 27 10 13 4 4 3 18 Melee 93 | . . . . . . . . . 1 4 . 1 5 . 9 5 5 1 . 6 18 10 . 4 4 3 17 Guns 34 | . 9 11 . . 4 1 4 5 . . . . . . . . . . . . . . . . . . . Cannons 1 | . . . . . . . . . . . . . . . . . . . . . . . . . . . 1 AOE 12 | . . . . . . . . . . 6 . . . . . . . . . . . . 6 . . . . Classes Destroyed 20 | . 4 1 . . 1 . 4 5 . . . 1 . . 2 . . . . . . . . . . . 2 Worker 9 | . 1 1 . . . . 1 . . . . . . . . 1 . . . . 2 1 . . 1 1 . Builder 4 | . . 1 . . . . . 1 . . . . . 1 . . . . . . 1 . . . . . . Tunneler 2 | . . . . . . . . 1 . . . . . . . . . . . . 1 . . . . . . Hauler 10 | . 1 . . . . . 3 1 . . . . . . . 1 . . . . 1 1 . . 1 1 . Recycler 10 | . . . . . . . . 1 . . . . . . . 3 . . . . 3 2 . . . 1 . Mechanic 1 | . . . . . . . . 1 . . . . . . . . . . . . . . . . . . . Operator 8 | . . . . . . . 2 . . . . . . . . 1 . . . . 1 1 . 3 . . . Watcher 4 | . . . . . . . 1 . . . . . . . . 1 . . . . 1 . . . 1 . . Swarmer 33 | . 3 6 . . . 1 . 3 . 4 . . . . 4 . . . . 2 5 . 5 . . . . Saboteur 1 | . . . . . . . . . . . . . . . . . . . . . . . . . . . 1 Grunt 53 | . 6 5 . . 3 . 2 . . 2 . . 3 . 1 2 6 . . 8 6 4 . . . 2 3 Brawler 5 | . . . . . . . 2 . . 1 . . 1 . . . . . . . . . . . . . 1 Duelist 4 | . . . . . . . 1 . . . . . . . 1 . . . . . . . . . . . 2 Protector 3 | . . . . . . . . . . . . . . . . . . . . . . . . . . . 3 Sentry 18 | . . . . . 1 . . . . 1 . . . . . 1 . . . . 2 6 . 4 . . 3 Specialist 1 | . . . . . . . . . . . . . . . 1 . . . . . . . . . . . . Hunter 13 | . . . . . . . . 1 1 . . . . . 1 . . 1 . . 2 . 1 . 2 1 3 Programmer 22 | . . . . . . . . 1 . . . . 1 . . 3 . . . 1 12 . . . 2 . 2 Heavy 1 | . . . . . . . . . . . . . . . 1 . . . . . . . . . . . . Cetus Guard 7 | . . . . . . . . . . . . . . . . . . . . . . . 7 . . . . Decomposer 2 | . . . . . . . . . 2 . . . . . . . . . . . . . . . . . . Assembled 1 | . . . . . . . . . . . . 1 . . . . . . . . . . . . . . . Thug 2 | . . . . . . . . . . 2 . . . . . . . . . . . . . . . . . Butcher 1 | . . . . . . . . . . . . . . . . . . . . . . . 1 . . . . Best Kill Streak 15 | . 6 3 . . 4 1 5 3 1 4 . 1 2 1 4 2 2 1 . 5 9 2 5 3 2 1 15 Combat Bots Only 15 | . 5 3 . . 4 1 3 3 1 4 . 1 2 . 4 2 2 1 . 5 6 2 5 2 2 1 15 Max Kills in Single Turn 3 | . 1 1 . . 1 1 2 1 1 2 . 1 1 1 1 1 1 1 . 1 1 1 3 1 1 1 1 Gunslinging . | . . . . . . . . . . . . . . . . . . . . . . . . . . . . Exploded 3 | . . . . . . . . . . 2 . . . . . . . . . . . . 3 . . . . Melee 1 | . . . . . . . . . 1 1 . 1 1 . 1 1 1 1 . 1 1 1 . 1 1 1 1 Uniques/NPCs Destroyed 1 | . . . . . . . . . . . . 1 . . . . . . . . . . . . . . . Z-Imprinter (-7/Deep Caves) Combat | -11 -10 -10 -10 -9 -8 -8 -8 -7 -7 -7 -7 -7 -6 -6 -6 -5 -5 -5 -5 -4 -4 -4 -4 -4 -4 -3 -3 -------- Run | Jun Mat Min Exi Min Mat Gar Mat Fac Low Low Zio Dee Pro Fac DSF Fac Upp Upp War Pro Fac Ext Cet Arc Hub Res Qua Damage Taken 21164 | . 364 541 . 47 429 56 150 1162 68 806 . 881 837 . 1514 761 403 149 158 1952 3084 1608 477 287 860 618 3952 Core 3523 | . 139 74 . . 46 20 15 189 21 74 . 65 219 . 328 92 . . 23 107 480 246 . 26 51 16 1292 Absorbed by Shields 157 | . . . . . . . . . . . . . . . . . . . . . . . . . 43 114 . Redirected to Shielding 304 | . . . . . . . . . . . . . . . 304 . . . . . . . . . . . . Regen/Repaired (Parts) 412 | . . . . . . . . . . . . . . . . . . . 165 . 247 . . . . . . Core Remaining (%) 55 | 100 . . . 14 . . 85 . . . . . 18 . 61 . . . . 77 . . . . 30 . . Volleys Fired 292 | . 35 47 . . 12 27 27 50 . 9 . . . 1 . . . . 13 4 2 30 15 11 . 5 4 Largest 4 | . 2 2 . . 4 3 4 4 . 1 . . . 2 . . . . 1 1 1 1 1 1 . 1 1 Hottest 117 | . 40 85 . . 92 89 117 117 . 33 . . . 106 . . . . 100 46 100 10 46 20 . 100 100 Shots Fired 559 | . 70 87 . . 48 39 101 120 . 9 . . . 2 . . . . 13 4 2 30 14 11 . 5 4 Gun 444 | . 70 87 . . 48 35 101 103 . . . . . . . . . . . . . . . . . . . Cannon 10 | . . . . . . . . . . . . . . 2 . . . . 1 . 2 . . . . 1 4 Launcher 48 | . . . . . . 4 . 17 . 9 . . . . . . . . . 4 . . 14 . . . . Special 57 | . . . . . . . . . . . . . . . . . . . 12 . . 30 . 11 . 4 . Kinetic 408 | . 70 58 . . 48 35 101 94 . . . . . 2 . . . . . . . . . . . . . Thermal 53 | . . 29 . . . . . 9 . . . . . . . . . . . . . . . 11 . 4 . Explosive 30 | . . . . . . 4 . 17 . 9 . . . . . . . . . . . . . . . . . Electromagnetic 18 | . . . . . . . . . . . . . . . . . . . . 4 . . 14 . . . . Entropic 8 | . . . . . . . . . . . . . . . . . . . 1 . 2 . . . . 1 4 Robot Hit Streak 13 | . 10 12 . . 6 8 5 5 . 3 . . . . . . . . 7 2 . 13 5 10 . 6 7 Robot Miss Streak 6 | . 3 2 . . 5 1 6 6 . 2 . . . . . . . . 1 1 . 2 1 4 . . 2 Penetration Max 1 | . . . . . . 1 1 . . . . . . . . . . . . . . . . . . . . Secondary Targets 3 | . . . . . 2 . . 1 . . . . . . . . . . . . . . . . . . . Max Gunslinging Chain 1 | . . . . . 1 . . 1 . . . . . . . . . . . . . . . . . . . Shots Hit Robots 834 | . 49 63 . . 35 16 53 47 5 15 3 3 21 1 40 39 21 4 10 33 108 98 5 21 29 30 85 Core Hits 327 | . 22 24 . . 13 10 20 14 1 20 1 2 7 1 16 12 7 1 . 14 26 21 24 11 9 11 40 Critical Kills 5 | . . . . . . . . 1 . . . . . . . . 3 . . 1 . . . . . . . Critical Parts Destroyed 33 | . 2 . . . . . 1 1 . . . . . . . 4 1 . . 3 21 . . . . . . Critical Strikes 95 | . 2 . . . . . 1 2 1 2 . 1 1 . 7 6 6 1 . 6 26 8 . . 7 3 15 Destroy 4 | . 2 . . . . . 1 1 . . . . . . . . . . . . . . . . . . . Smash 34 | . . . . . . . . 1 . . . . . . . 4 4 . . 4 21 . . . . . . Sever 49 | . . . . . . . . . 1 2 . 1 1 . 7 2 2 1 . . 5 7 . . 7 3 10 Impale 7 | . . . . . . . . . . . . . . . . . . . . 2 . 1 . . . . 4 Sunder 1 | . . . . . . . . . . . . . . . . . . . . . . . . . . . 1 Melee Attacks 701 | . . . . . . . . 3 7 16 5 5 28 10 55 55 26 6 6 39 137 94 . 20 39 43 107 Impact 136 | . . . . . . . . 3 . . . . . . . 24 9 3 2 22 60 . . . . . 13 Slashing 519 | . . . . . . . . . 7 16 5 5 24 10 55 31 17 3 . . 76 91 . 19 39 43 78 Piercing 46 | . . . . . . . . . . . . . 4 . . . . . 4 17 1 3 . 1 . . 16 Sneak Attacks 53 | . . . . . . . . 2 2 . . . . 1 . 8 . . . 4 14 11 . 3 3 5 . Combat Hostiles 11 | . . . . . . . . . . . . . . . . . . . . 4 3 3 . . . 1 . Follow-up Attacks 211 | . . . . . . . . . 1 3 . 1 8 . 18 16 8 2 . 11 31 39 . 5 11 8 49 Damage Inflicted 33161 | . 466 659 . . 484 659 1311 1150 274 1328 236 135 778 79 1291 2132 905 226 . 1975 5795 4026 1501 1026 1532 1500 3693 Guns 4303 | . 463 659 . . 484 405 1311 981 . . . . . . . . . . . . . . . . . . . Cannons 192 | . . . . . . . . . . . . . . . . . . . . . . . . . . . 192 Explosions 3018 | . . . . . . 254 . 39 . 920 . . . . . . . . . 304 . . 1501 . . . . Melee 25418 | . . . . . . . . 130 274 408 236 135 778 79 1291 2132 905 226 . 1671 5795 4026 . 915 1532 1436 3449 Ramming 55 | . 3 . . . . . . . . . . . . . . . . . . . . . . . . . 52 Kinetic 3849 | . 463 340 . . 484 405 1311 846 . . . . . . . . . . . . . . . . . . . Thermal 675 | . . 319 . . . . . 135 . . . . . . . . . . . . . . 46 111 . 64 . Explosive 1213 | . . . . . . 254 . 39 . 920 . . . . . . . . . . . . . . . . . Electromagnetic 1759 | . . . . . . . . . . . . . . . . . . . . 304 . . 1455 . . . . Impact 5906 | . . . . . . . . 130 . . . . . . . 1222 396 116 . 1070 2659 . . . . . 313 Slashing 18218 | . . . . . . . . . 274 408 236 135 677 79 1291 910 509 110 . . 3136 3942 . 915 1532 1436 2628 Piercing 1294 | . . . . . . . . . . . . . 101 . . . . . . 601 . 84 . . . . 508 Entropic 192 | . . . . . . . . . . . . . . . . . . . . . . . . . . . 192 Highest Corruption 20 | . . . . . . . . 6 6 8 8 . 2 . . 1 1 . 1 5 18 14 15 15 20 . 1 Average Corruption 10 | . . . . . . . . 5 6 7 8 . 1 . . 1 1 . 1 4 12 14 14 15 16 . 1 Corruption Purged 5 | . . . . . . . . . . . . . . . . . 1 . . . 4 . . . . . . Corruption Blocked . | . . . . . . . . . . . . . . . . . . . . . . . . . . . . Effects 192 | . . . . . . . . 11 10 17 1 . 2 . . 1 2 . . 8 51 42 12 16 18 . 1 Message Errors 46 | . . . . . . . . 1 3 3 . . 1 . . 1 2 . . 3 11 9 5 4 3 . . Matter Fused 46 | . . . . . . . . 2 2 4 . . . . . . . . . 1 12 12 . 5 8 . . Heat Flow Errors 24 | . . . . . . . . 1 . 4 1 . . . . . . . . 2 5 4 3 2 2 . . Energy Discharges 26 | . . . . . . . . 1 1 2 . . . . . . . . . . 10 8 1 2 1 . . Parts Rejected 4 | . . . . . . . . . . . . . . . . . . . . 1 1 2 . . . . . Parts Fused 6 | . . . . . . . . . . 1 . . . . . . . . . . 2 . 1 2 . . . Data Loss (minor) 23 | . . . . . . . . 3 3 1 . . . . . . . . . . 6 5 1 1 3 . . Data Loss (major) 13 | . . . . . . . . 3 . 1 . . 1 . . . . . . 1 3 2 . . 1 . 1 Alerts 2 | . . . . . . . . . 1 1 . . . . . . . . . . . . . . . . . Misdirections 1 | . . . . . . . . . . . . . . . . . . . . . 1 . . . . . . Weapon Failures 1 | . . . . . . . . . . . . . . . . . . . . . . . 1 . . . . Overload Shots . | . . . . . . . . . . . . . . . . . . . . . . . . . . . . Overflow Damage 4234 | . . . . . . . . 100 145 9 113 . 58 . 48 687 133 19 . 376 1697 449 6 136 103 5 150 Projectiles 53 | . . . . . . . . . . . . . . . . . . . . . . . . 6 . . 47 Explosions 12 | . . . . . . . . . . 6 . . . . . . . . . . . . 6 . . . . Melee 4169 | . . . . . . . . 100 145 3 113 . 58 . 48 687 133 19 . 376 1697 449 . 130 103 5 103 Knockbacks 23 | . . . . . . . . 2 . . . . . . . 2 1 2 . 4 12 . . . . . . Impact 23 | . . . . . . . . 2 . . . . . . . 2 1 2 . 4 12 . . . . . . Kinetic . | . . . . . . . . . . . . . . . . . . . . . . . . . . . . Secondary . | . . . . . . . . . . . . . . . . . . . . . . . . . . . . Self-Inflicted Damage 256 | . . . . . . 58 . 137 . 12 . . . . . . . . . 33 . . 14 . . . 2 Shots 8 | . . . . . . 2 . 3 . 1 . . . . . . . . . 1 . . 1 . . . . Rammed 1 | . . . . . . . . . . . . . . . . . . . . . . . . . . . 1 Targets Rammed 7 | . 1 . . . . . . . . . . . . . . . . . . . . . . . . . 6 Kicked 6 | . 1 . . . . . . . . . . . . . . . . . . . . . . . . . 5 Crushed . | . . . . . . . . . . . . . . . . . . . . . . . . . . . . Highest Temperature 355 | . 27 50 . 6 17 . 238 355 . 168 126 1 . 3 . 313 2 . 40 271 258 208 253 151 263 30 . Average Temperature 75 | . 11 13 . 6 9 . 86 95 . 69 74 1 . 2 . 166 2 . 25 119 101 79 86 78 124 15 . Received Heat Transfer 3475 | . 222 252 . 9 225 . 99 12 . 234 . 102 261 . 189 72 159 . . 276 226 411 63 18 . 49 596 Siege Activations . | . . . . . . . . . . . . . . . . . . . . . . . . . . . . Robots Corrupted 11 | . . . . . . . . . . . . . . . . . . . . 4 . . 7 . . . . Combat Hostiles 11 | . . . . . . . . . . . . . . . . . . . . 4 . . 7 . . . . Parts Fried 28 | . . 2 . . . . . 2 . . . . . . . 3 1 . . 7 8 . 3 . . . 2 Impact Corruptions 77 | . . . . . . . . 4 . . . . . . . 11 3 1 . 12 45 . . . . . 1 Robots Melted . | . . . . . . . . . . . . . . . . . . . . . . . . . . . . Combat Hostiles . | . . . . . . . . . . . . . . . . . . . . . . . . . . . . Parts Melted 1 | . . . . . . . . . . . . . . . . . . . . . 1 . . . . . . Heat Transferred 1494 | . . 778 . . . . . 259 . . . . . . . . . . . . . . 50 259 . 148 . Parts Sabotaged 6 | . . . . . . . . . . . . . . . . . . . . . . . . . . . 6 Parts Stolen . | . . . . . . . . . . . . . . . . . . . . . . . . . . . . Parts Stripped . | . . . . . . . . . . . . . . . . . . . . . . . . . . . . Power Chain Reactions 2 | . . . . . . . . . . . . . . . . . . . . . . . 2 . . . . Missiles Intercepted . | . . . . . . . . . . . . . . . . . . . . . . . . . . . . Alert | -11 -10 -10 -10 -9 -8 -8 -8 -7 -7 -7 -7 -7 -6 -6 -6 -5 -5 -5 -5 -4 -4 -4 -4 -4 -4 -3 -3 ------- Run | Jun Mat Min Exi Min Mat Gar Mat Fac Low Low Zio Dee Pro Fac DSF Fac Upp Upp War Pro Fac Ext Cet Arc Hub Res Qua Peak Influence 1932 | . 284 240 . 22 163 1016 847 366 . . . . . 39 349 262 . . . . 735 422 512 329 275 144 1932 Initial 495 | . . 60 . . 8 108 495 321 . . . . . . 27 182 . . . . 154 329 83 204 114 144 22 Average 293 | . 96 111 . 2 45 521 648 252 . . . . . 30 135 93 . . . . 418 169 341 279 156 59 1725 Maximum Alert Level 5 | . 1 1 . . . 3 3 1 . . . . . . 1 1 . . . . 3 2 2 1 1 . 5 Low Security (%) 51 | 100 92 85 . 100 100 3 . 28 . . . . . 100 69 89 . . . . 27 76 13 5 84 100 . Level 1 23 | . 7 14 . . . 30 . 71 . . . . . . 30 10 . . . . 13 22 40 95 15 . . Level 2 19 | . . . . . . 47 85 . . . . . . . . . . . . . 51 1 46 . . . . Level 3 3 | . . . . . . 18 14 . . . . . . . . . . . . . 7 . . . . . . Level 4 . | . . . . . . . . . . . . . . . . . . . . . . . . . . . . Level 5 . | . . . . . . . . . . . . . . . . . . . . . . . . . . . . High Security . | . . . . . . . . . . . . . . . . . . . . . . . . . . . . Max Security 2 | . . . . . . . . . . . . . . . . . . . . . . . . . . . 99 Sterilizations 1 | . . . . . . . . . . . . . . . 1 . . . . . . . . . . . . Squads Dispatched 43 | . 3 . . . 3 . . 4 . . . . . . 1 5 . . . . 6 1 . . 4 3 13 Investigation 7 | . 1 . . . 1 . . 1 . . . . . . . 2 . . . . 1 . . . 1 . . Extermination 10 | . . . . . . . . 3 . . . . . . . 2 . . . . 4 . . . 1 . . Reinforcement 12 | . 2 . . . 1 . . . . . . . . . 1 1 . . . . 1 1 . . 2 3 . Assault 12 | . . . . . . . . . . . . . . . . . . . . . . . . . . . 12 Garrison 2 | . . . . . 1 . . . . . . . . . . . . . . . . . . . . . 1 Intercept . | . . . . . . . . . . . . . . . . . . . . . . . . . . . . Searches Triggered . | . . . . . . . . . . . . . . . . . . . . . . . . . . . . Construction Impeded . | . . . . . . . . . . . . . . . . . . . . . . . . . . . . Haulers Reinforced 1 | . . . . . . . . . . . . . . . . . . . . . . . . . . 1 . Active Scanning Responses . | . . . . . . . . . . . . . . . . . . . . . . . . . . . . Cargo Convoy Interrupts 1 | . . . . . . . . 1 . . . . . . . . . . . . . . . . . . . Stealth | -11 -10 -10 -10 -9 -8 -8 -8 -7 -7 -7 -7 -7 -6 -6 -6 -5 -5 -5 -5 -4 -4 -4 -4 -4 -4 -3 -3 --------- Run | Jun Mat Min Exi Min Mat Gar Mat Fac Low Low Zio Dee Pro Fac DSF Fac Upp Upp War Pro Fac Ext Cet Arc Hub Res Qua Distress Signals 9 | . . . . . . . 2 . . . . . . . . . . . . . 1 3 2 . . . 1 Communications Jammed 121 | . . . . . . . . . . . . . . . . 2 . . . . 11 85 . . 16 1 6 Distress Signals 121 | . . . . . . . . . . . . . . . . 2 . . . . 11 85 . . 16 1 6 Times Spotted 376 | . 15 11 . 4 4 . 17 10 1 9 . 6 12 . 18 16 9 1 18 25 42 32 19 10 8 12 77 Peak Tracking Total 39 | . 6 3 . 3 4 . 4 3 1 5 . 3 6 . 4 4 5 1 16 6 8 7 5 2 3 3 39 Tactical Retreats 31 | . 1 . . . . . 1 . . . . . 1 . 6 3 2 . 2 6 6 . . . . 1 2 Traps | -11 -10 -10 -10 -9 -8 -8 -8 -7 -7 -7 -7 -7 -6 -6 -6 -5 -5 -5 -5 -4 -4 -4 -4 -4 -4 -3 -3 ------- Run | Jun Mat Min Exi Min Mat Gar Mat Fac Low Low Zio Dee Pro Fac DSF Fac Upp Upp War Pro Fac Ext Cet Arc Hub Res Qua Traps Triggered 14 | . . . . . . 2 . 1 . . . . . . 1 1 . . . . 4 1 . . 2 2 . Indirectly . | . . . . . . . . . . . . . . . . . . . . . . . . . . . . Trap Hack Attempts . | . . . . . . . . . . . . . . . . . . . . . . . . . . . . Triggered . | . . . . . . . . . . . . . . . . . . . . . . . . . . . . Disarmed . | . . . . . . . . . . . . . . . . . . . . . . . . . . . . Reprogrammed . | . . . . . . . . . . . . . . . . . . . . . . . . . . . . Reused . | . . . . . . . . . . . . . . . . . . . . . . . . . . . . Traps Extracted . | . . . . . . . . . . . . . . . . . . . . . . . . . . . . Installed . | . . . . . . . . . . . . . . . . . . . . . . . . . . . . Triggered 15 | . . 1 . . . . . 1 . . . . . . . . . 2 11 . . . . . . . . Machines | -11 -10 -10 -10 -9 -8 -8 -8 -7 -7 -7 -7 -7 -6 -6 -6 -5 -5 -5 -5 -4 -4 -4 -4 -4 -4 -3 -3 ---------- Run | Jun Mat Min Exi Min Mat Gar Mat Fac Low Low Zio Dee Pro Fac DSF Fac Upp Upp War Pro Fac Ext Cet Arc Hub Res Qua Machines Disabled 34 | . . . . . . 8 4 11 . . . 2 . . 1 . . . 2 . 1 2 . 1 . 1 1 Max in Single Turn 4 | . . . . . . 1 1 4 . . . . . . 1 . . . 1 . 1 . . . . 1 1 Garrison Access 2 | . . . . . . . . . . . . . . . . 1 . . . . 1 . . . . . . Garrison Relay 4 | . . . . . . 4 . . . . . . . . . . . . . . . . . . . . . Phase Generator 1 | . . . . . . 1 . . . . . . . . . . . . . . . . . . . . . Network Hub 1 | . . . . . . . . . . . . . . . . . . . . . . . . . 1 . . Machines Repaired 1 | . . . . . . . . . . . . . . . . . . . . . . . . . 1 . . Machines Sabotaged . | . . . . . . . . . . . . . . . . . . . . . . . . . . . . Overloaded Fab Kills . | . . . . . . . . . . . . . . . . . . . . . . . . . . . . Hacking | -11 -10 -10 -10 -9 -8 -8 -8 -7 -7 -7 -7 -7 -6 -6 -6 -5 -5 -5 -5 -4 -4 -4 -4 -4 -4 -3 -3 --------- Run | Jun Mat Min Exi Min Mat Gar Mat Fac Low Low Zio Dee Pro Fac DSF Fac Upp Upp War Pro Fac Ext Cet Arc Hub Res Qua Machines Accessed 55 | . 2 . 4 1 2 3 1 4 . . . . . 4 . 6 . 1 7 . 5 10 1 . 2 2 . Terminals 30 | . 1 . . . . 3 1 2 . . . . . 4 . 2 . . . . 2 10 1 . 2 2 . Fabricators 4 | . . . . . . . . 2 . . . . . . . 2 . . . . . . . . . . . Repair Stations 1 | . . . . . . . . . . . . . . . . . . . . . 1 . . . . . . Recycling Units 3 | . 1 . . . 1 . . . . . . . . . . 1 . . . . . . . . . . . Scanalyzers . | . . . . . . . . . . . . . . . . . . . . . . . . . . . . Garrison Access 4 | . . . . . 1 . . . . . . . . . . 1 . . . . 2 . . . . . . Total Hacks 139 | . 3 . 19 1 2 6 2 8 . . . . . 12 . 14 . 1 19 . 12 25 2 . 9 4 . Successful 82 | . 2 . 19 1 2 1 1 2 . . . . . 5 . 5 . 1 19 . 6 14 . . 2 2 . Failed 57 | . 1 . . . . 5 1 6 . . . . . 7 . 9 . . . . 6 11 2 . 7 2 . Catastrophic 20 | . . . . . . 2 1 3 . . . . . . . 1 . . . . 3 5 . . 4 1 . Database Lockouts . | . . . . . . . . . . . . . . . . . . . . . . . . . . . . Manual 51 | . 3 . 1 . 1 . 2 2 . . 6 . . 7 . 5 . . . . 5 10 . . 9 . . Terminals 78 | . 2 . . . . 6 2 6 . . . . . 12 . 5 . . . . 5 25 2 . 9 4 . Fabricators 7 | . . . . . . . . 2 . . . . . . . 5 . . . . . . . . . . . Repair Stations 4 | . . . . . . . . . . . . . . . . . . . . . 4 . . . . . . Recycling Units 4 | . 1 . . . 1 . . . . . . . . . . 2 . . . . . . . . . . . Scanalyzers . | . . . . . . . . . . . . . . . . . . . . . . . . . . . . Garrison Access 6 | . . . . . 1 . . . . . . . . . . 2 . . . . 3 . . . . . . Terminal Hacks 62 | . . . 19 1 . 1 1 1 . . . . . 3 . 1 . 1 19 . 1 11 . . 1 2 . Record 25 | . . . 18 . . . . . . . . . . . . . . . 7 . . . . . . . . Prototype ID Bank 11 | . . . . . . . . . . . . . . . . . . . 10 . . 1 . . . . . Open Door 10 | . . . . 1 . . . . . . . . . . . . . 1 2 . . 6 . . . . . Open DSF 1 | . . . . . . . . . . . . . . 1 . . . . . . . . . . . . . Branch Access Points 6 | . . . . . . . 1 1 . . . . . 1 . 1 . . . . 1 . . . . 1 . Terminal Index 1 | . . . . . . . . . . . . . . . . . . . . . . 1 . . . . . Unreport Threat 4 | . . . . . . . . . . . . . . . . . . . . . . 3 . . . 1 . Locate Traps 1 | . . . . . . . . . . . . . . 1 . . . . . . . . . . . . . Recall Reinforcements 1 | . . . . . . . . . . . . . . . . . . . . . . . . . 1 . . Patrol Navigation 1 | . . . . . . 1 . . . . . . . . . . . . . . . . . . . . . EX-Prototype ID Bank 1 | . . . 1 . . . . . . . . . . . . . . . . . . . . . . . . Fabricator Hacks 3 | . . . . . . . . . . . . . . . . 3 . . . . . . . . . . . Load Schematic 2 | . . . . . . . . . . . . . . . . 2 . . . . . . . . . . . Build 1 | . . . . . . . . . . . . . . . . 1 . . . . . . . . . . . Repair Station Hacks 4 | . . . . . . . . . . . . . . . . . . . . . 4 . . . . . . Scan Component 2 | . . . . . . . . . . . . . . . . . . . . . 2 . . . . . . Repair 2 | . . . . . . . . . . . . . . . . . . . . . 2 . . . . . . Recycling Unit Hacks . | . . . . . . . . . . . . . . . . . . . . . . . . . . . . Scanalyzer . | . . . . . . . . . . . . . . . . . . . . . . . . . . . . Garrison Access Hacks 2 | . . . . . 1 . . . . . . . . . . 1 . . . . . . . . . . . Unlock Access 1 | . . . . . 1 . . . . . . . . . . . . . . . . . . . . . . Seal Access 1 | . . . . . . . . . . . . . . . . 1 . . . . . . . . . . . Unauthorized Hacks 11 | . 2 . . . 1 . . 1 . . . . . 2 . . . . . . 1 3 . . 1 . . Terminals 7 | . 1 . . . . . . . . . . . . 2 . . . . . . . 3 . . 1 . . Track 2 | . 1 . . . . . . . . . . . . 1 . . . . . . . . . . . . . Assimilate 3 | . . . . . . . . . . . . . . . . . . . . . . 3 . . . . . Botnet 1 | . . . . . . . . . . . . . . 1 . . . . . . . . . . . . . Sabotage 1 | . . . . . . . . . . . . . . . . . . . . . . . . . 1 . . Fabricators 1 | . . . . . . . . 1 . . . . . . . . . . . . . . . . . . . Liberate 1 | . . . . . . . . 1 . . . . . . . . . . . . . . . . . . . Repair Stations . | . . . . . . . . . . . . . . . . . . . . . . . . . . . . Recycling Units 2 | . 1 . . . 1 . . . . . . . . . . . . . . . . . . . . . . Tunnel 2 | . 1 . . . 1 . . . . . . . . . . . . . . . . . . . . . . Scanalyzers . | . . . . . . . . . . . . . . . . . . . . . . . . . . . . Garrison Access 1 | . . . . . . . . . . . . . . . . . . . . . 1 . . . . . . Jam 1 | . . . . . . . . . . . . . . . . . . . . . 1 . . . . . . Data Cores Recovered 2 | . . . . . . . 2 . . . . . . . . . . . . . . . . . . . . Used . | . . . . . . . . . . . . . . . . . . . . . . . . . . . . Hacking Detections 30 | . 1 . . . . 3 1 3 . . . . . 4 . 5 . . . . 4 4 1 . 2 2 . Full Trace Events 4 | . . . . . . 1 . 1 . . . . . . . 2 . . . . . . . . . . . Feedback Events . | . . . . . . . . . . . . . . . . . . . . . . . . . . . . Feedback Blocked . | . . . . . . . . . . . . . . . . . . . . . . . . . . . . Robot Schematics Acquired 4 | . . . . . . . . . . . 4 . . . . . . . . . . . . . . . . Robots Built 3 | . . . . . . . . . . . . . . . . 3 . . . . . . . . . . . Authchips . | . . . . . . . . . . . . . . . . . . . . . . . . . . . . Time 99 | . . . . . . . . . . . . . . . . 99 . . . . . . . . . . . Total Robot Build Rating 6 | . . . . . . . . . . . . . . . . 6 . . . . . . . . . . . Part Schematics Acquired 15 | . . . . . . . . . . . 15 . . . . . . . . . . . . . . . . Parts Built . | . . . . . . . . . . . . . . . . . . . . . . . . . . . . Authchips . | . . . . . . . . . . . . . . . . . . . . . . . . . . . . Time . | . . . . . . . . . . . . . . . . . . . . . . . . . . . . Total Part Build Rating . | . . . . . . . . . . . . . . . . . . . . . . . . . . . . Parts Repaired 2 | . . . . . . . . . . . . . . . . . . . . . 2 . . . . . . Time 88 | . . . . . . . . . . . . . . . . . . . . . 88 . . . . . . Parts Recycled . | . . . . . . . . . . . . . . . . . . . . . . . . . . . . Recycled Matter . | . . . . . . . . . . . . . . . . . . . . . . . . . . . . Retrieved Matter . | . . . . . . . . . . . . . . . . . . . . . . . . . . . . Retrieved Components . | . . . . . . . . . . . . . . . . . . . . . . . . . . . . Parts Scanalyzed . | . . . . . . . . . . . . . . . . . . . . . . . . . . . . Part Schematics Acquired . | . . . . . . . . . . . . . . . . . . . . . . . . . . . . Parts Damaged . | . . . . . . . . . . . . . . . . . . . . . . . . . . . . Bothacking | -11 -10 -10 -10 -9 -8 -8 -8 -7 -7 -7 -7 -7 -6 -6 -6 -5 -5 -5 -5 -4 -4 -4 -4 -4 -4 -3 -3 ------------ Run | Jun Mat Min Exi Min Mat Gar Mat Fac Low Low Zio Dee Pro Fac DSF Fac Upp Upp War Pro Fac Ext Cet Arc Hub Res Qua Used RIF Installer . | . . . . . . . . . . . . . . . . . . . . . . . . . . . . Robots Hacked 2 | . . . . . . . . . . . . . . . . . . . 2 . . . . . . . . Non-combat . | . . . . . . . . . . . . . . . . . . . . . . . . . . . . Combat 2 | . . . . . . . . . . . . . . . . . . . 2 . . . . . . . . Robot Hacks Applied 2 | . . . . . . . . . . . . . . . . . . . 2 . . . . . . . . parse_system 2 | . . . . . . . . . . . . . . . . . . . 2 . . . . . . . . Relay Couplers Released 22 | . . . . . . 16 . . . . . . . . . . . . . . 3 . . . . 3 . Machine Destruction 16 | . . . . . . 16 . . . . . . . . . . . . . . . . . . . . . Programmers 6 | . . . . . . . . . . . . . . . . . . . . . 3 . . . . 3 . Fabnet Peak Effective % . | . . . . . . . . . . . . . . . . . . . . . . . . . . . . Robots Rewired 26 | . . . . . . 6 . . . . . . . . . . . . 6 . . 14 . . . . . Allies Hacked . | . . . . . . . . . . . . . . . . . . . . . . . . . . . . Hacks Repelled . | . . . . . . . . . . . . . . . . . . . . . . . . . . . . Allies | -11 -10 -10 -10 -9 -8 -8 -8 -7 -7 -7 -7 -7 -6 -6 -6 -5 -5 -5 -5 -4 -4 -4 -4 -4 -4 -3 -3 -------- Run | Jun Mat Min Exi Min Mat Gar Mat Fac Low Low Zio Dee Pro Fac DSF Fac Upp Upp War Pro Fac Ext Cet Arc Hub Res Qua Total Allies 43 | . . . . . . 6 . 3 . . 2 . . . . 3 . . 6 . . 23 . . . . . Largest Group 10 | . . . . . . 6 6 3 . . 2 2 1 . . 3 . . 6 . . 10 5 1 . . . Highest-Rated Group 516 | . . . . . . 82 82 48 . . 192 192 81 . . 30 . . 313 . . 516 227 46 . . . Highest-Rated Ally 159 | . . . . . . 21 21 16 . . 96 96 81 . . 10 . . 68 . . 159 51 46 . . . Total Orders 6 | . . . . 1 . . . . . . . . . . . . . . 2 2 . . . . . 1 . FOLLOW 1 | . . . . . . . . . . . . . . . . . . . 1 . . . . . . . . AID 1 | . . . . . . . . . . . . . . . . . . . 1 . . . . . . . . EXPLORE 3 | . . . . . . . . . . . . . . . . . . . . 2 . . . . . 1 . RETURN 1 | . . . . 1 . . . . . . . . . . . . . . . . . . . . . . . Ally Attacks 360 | . . . . 4 . . 59 12 . . . 51 . . . 13 . . 38 . . 135 43 5 . . . Total Damage 10409 | . . . . 13 . . 669 329 . . . 2812 . . . 259 . . 1587 . . 3656 919 165 . . . Kills 60 | . . . . 1 . . 8 3 . . . 14 . . . 2 . . 10 . . 19 3 . . . . Allies Corrupted . | . . . . . . . . . . . . . . . . . . . . . . . . . . . . Allies Melted . | . . . . . . . . . . . . . . . . . . . . . . . . . . . . Intel | -11 -10 -10 -10 -9 -8 -8 -8 -7 -7 -7 -7 -7 -6 -6 -6 -5 -5 -5 -5 -4 -4 -4 -4 -4 -4 -3 -3 ------- Run | Jun Mat Min Exi Min Mat Gar Mat Fac Low Low Zio Dee Pro Fac DSF Fac Upp Upp War Pro Fac Ext Cet Arc Hub Res Qua Robot Analysis Total . | . . . . . . . . . . . . . . . . . . . . . . . . . . . . Derelict Logs Recovered 6 | . . 1 . . . . . . . . 1 . 1 . . . 1 1 . 1 . . . . . . . Drone Launches 36 | . . . . 9 . . . . . . . 20 . . . . . . . 3 . . . . . 4 . Drone Recoveries 27 | . . . . 8 . . . . . . . 15 . . . . . . . 2 . . . . . 2 . Exploration | -11 -10 -10 -10 -9 -8 -8 -8 -7 -7 -7 -7 -7 -6 -6 -6 -5 -5 -5 -5 -4 -4 -4 -4 -4 -4 -3 -3 ------------- Run | Jun Mat Min Exi Min Mat Gar Mat Fac Low Low Zio Dee Pro Fac DSF Fac Upp Upp War Pro Fac Ext Cet Arc Hub Res Qua Turns Passed 17985 | 8 496 614 343 166 254 1153 692 1581 485 528 982 833 433 347 366 1519 486 237 1040 480 2087 1030 238 340 354 625 268 Spaces Moved 12439 | 5 308 379 283 125 158 676 448 1049 350 323 744 658 397 295 242 1159 305 185 861 289 1420 666 153 169 221 390 181 Core 128 | . . . . . . . . . . . . . . . . . . . . . . . . . . . 128 Treads 11 | . . . . . . . . . . . . . . . . . . . . . 11 . . . . . . Legs 11597 | 5 308 379 283 125 158 676 448 1049 350 323 744 658 126 295 242 1159 305 185 861 289 977 666 153 169 221 390 53 Wheels 432 | . . . . . . . . . . . . . . . . . . . . . 432 . . . . . . Hover 271 | . . . . . . . . . . . . . 271 . . . . . . . . . . . . . . Flight . | . . . . . . . . . . . . . . . . . . . . . . . . . . . . Fastest Speed 45 | 120 120 120 120 120 120 100 100 130 130 130 130 103 45 90 82 112 90 90 86 86 70 120 120 120 120 117 50 Average Speed 116 | 120 120 120 120 126 120 141 122 130 130 130 130 115 82 95 96 112 111 111 109 104 111 120 120 120 120 119 70 Slowest Speed 190 | 120 120 120 120 190 120 190 130 130 130 130 130 130 130 103 190 112 112 112 112 107 190 120 120 120 190 120 120 Overloaded Moves 241 | . . . . . . . . . . . . . 33 . 102 . 11 1 28 31 35 . . . . . . Propulsion Burnouts . | . . . . . . . . . . . . . . . . . . . . . . . . . . . . Robots Hopped 1 | . . . . . . . . . . . . . . . . . . . . . . 1 . . . . . Cave-ins Triggered 2 | . . . . . . . . 2 . . . . . . . . . . . . . . . . . . . Exploration Rate (%) 48 | 2 52 67 61 26 15 89 45 23 52 53 82 75 56 8 94 21 52 40 89 52 24 80 62 83 24 12 24 Regions Visited 27 Branch Regions 17 Pre-discovered Areas 6 | . 1 1 . . 1 . . . 1 . 1 . . . . . . . . 1 . . . . . . . Known Exits Taken 7 | . . . . . 1 . . 1 . . . . . 1 . 1 . . . . 1 . . . 1 1 . Unknown Exits Taken 18 | 1 1 1 1 1 . . 1 . 1 1 1 1 1 . . . 1 1 1 1 . 1 1 1 . . . Scrap Searched 15 | . . . . . . . . . . 2 3 . 1 . . . 2 2 . 5 . . . . . . . Spaces Dug 75 | . . . . . . . . 33 1 . . . . 7 2 2 . . . 1 7 3 10 . 1 8 . Terrain Destroyed 489 | . . . . . . 164 7 239 1 35 . . . 7 2 2 . . 1 1 7 3 10 . 1 8 1 Melee 28 | . . . . . . . . . 1 . . . . 7 2 2 . . . 1 3 3 . . 1 8 . Projectile 17 | . . . . . . 1 7 3 . . . . . . . . . . 1 . 4 . . . . . 1 AOE 444 | . . . . . . 163 . 236 . 35 . . . . . . . . . . . . 10 . . . . Terrain Rammed . | . . . . . . . . . . . . . . . . . . . . . . . . . . . . Walls Destroyed . | . . . . . . . . . . . . . . . . . . . . . . . . . . . . Machines Disabled . | . . . . . . . . . . . . . . . . . . . . . . . . . . . . Actions | -11 -10 -10 -10 -9 -8 -8 -8 -7 -7 -7 -7 -7 -6 -6 -6 -5 -5 -5 -5 -4 -4 -4 -4 -4 -4 -3 -3 --------- Run | Jun Mat Min Exi Min Mat Gar Mat Fac Low Low Zio Dee Pro Fac DSF Fac Upp Upp War Pro Fac Ext Cet Arc Hub Res Qua Total 14843 | 9 371 459 286 133 192 831 530 1215 371 398 751 725 461 341 316 1316 421 207 941 407 1812 846 194 265 264 515 266 Wait 972 | . 14 20 . 6 5 25 24 81 13 45 . 30 36 12 8 79 90 17 35 72 180 40 6 67 8 47 12 Move 12408 | 4 307 378 282 124 158 674 447 1046 349 322 743 657 396 294 241 1158 304 184 860 288 1419 663 152 168 220 389 181 Hop 1 | . . . . . . . . . . . . . . . . . . . . . . 1 . . . . . Pick Up 124 | . 4 2 2 1 3 7 8 6 1 . 2 4 1 7 7 9 3 . 6 5 23 9 7 1 . 6 . Fast Attach 117 | . 2 3 . . 4 4 2 7 . 2 1 6 2 7 8 7 1 1 5 2 31 9 . . 5 7 1 Attach 77 | . . 3 . . 3 . 2 3 1 1 . 4 2 4 3 4 1 1 . 6 12 7 2 2 1 9 6 Detach 53 | . 1 1 . 1 2 . 1 1 . . . 3 1 5 7 6 . . . . 11 3 . . 1 8 1 Swap 124 | . 4 3 1 1 1 10 8 6 . 7 . 3 4 2 4 9 2 . 7 3 11 22 6 4 . 4 2 Drop 157 | 5 3 2 1 . 4 9 11 10 2 1 1 5 . 1 8 14 4 1 10 2 28 16 6 2 2 9 . Fire 292 | . 35 47 . . 12 27 27 50 . 9 . . . 1 . . . . 13 4 2 30 15 11 . 5 4 Melee 412 | . . . . . . . . 3 5 11 4 3 19 8 30 30 16 3 4 25 87 43 . 10 27 31 53 Ram 1 | . . . . . . . . . . . . . . . . . . . . . . . . . . . 1 Kick 6 | . 1 . . . . . . . . . . . . . . . . . . . . . . . . . 5 Crush . | . . . . . . . . . . . . . . . . . . . . . . . . . . . . Escape Stasis 13 | . . . . . . . . 2 . . . . . . . . . . . . 8 3 . . . . . Rewire 86 | . . . . . . 75 . . . . . 10 . . . . . . 1 . . . . . . . . Trap . | . . . . . . . . . . . . . . . . . . . . . . . . . . . . Miscellaneous . | . . . . . . . . . . . . . . . . . . . . . . . . . . . . Route ------- -11/Junkyard -10/Materials -10/Mines (discovered 3 exits: [*Mat x2] / *Exi) -10/Exiles -9/Mines -8/Materials -8/Garrison (discovered 3 exits: *Mat x3) -8/Materials -7/Factory (discovered 4 exits: *Sto x2 / *Low x2) -7/Lower Caves -7/Lower Caves (discovered 2 exits: *Fac / *Zio) -7/Zion (discovered 2 exits: [*Dee] / [*Pro]) -7/Deep Caves -6/Proximity Caves -6/Factory (discovered 3 exits: Low x2 / DSF) -6/DSF -5/Factory (discovered 3 exits: *Fac / *Upp x2) -5/Upper Caves -5/Upper Caves -5/Warlord -4/Proximity Caves -4/Factory (discovered 8 exits: *Res x3 / Upp x2 / *Ext x2 / Arm) -4/Extension (discovered 2 exits: *Res / *Cet) -4/Cetus (discovered 2 exits: *Res / [*Arc]) -4/Archives (discovered 2 exits: *Hub x2) -4/Hub_04(d) -3/Research (discovered 2 exits: *Qua x2) -3/Quarantine History --------- Turn | Location | Event 1 | -11/Junkyard | Discovered new exit (range 2) 9 | -11/Junkyard | Entered Materials 96 | -10/Materials | Discovered new exit (range 8) 308 | -10/Materials | Build established: Mutant 399 | -10/Materials | Core integrity fell below 50% 505 | -10/Materials | Entered Mines 531 | -10/Mines | Met a Derelict bent on vengeance 642 | -10/Mines | Lost 3 parts (1n2w) 835 | -10/Mines | Discovered new exit (range 13) 898 | -10/Mines | Build established: Scavenger-Mutant 1061 | -10/Mines | Core integrity fell below 20% 1078 | -10/Mines | Discovered new exit (range 7) 1114 | -10/Mines | Deemed a non-threat by the Exiles lab entrance 1114 | -10/Mines | Discovered new exit (range 5) 1119 | -10/Mines | Entered Exiles 1149 | -10/Exiles | Met 8R-AWN 1170 | -10/Exiles | Met EX-HEX 1203 | -10/Exiles | Met EX-BIN 1301 | -10/Exiles | Aligned with FarCom system 1302 | -10/Exiles | Given EX-Vault access code 1332 | -10/Exiles | Opened EX-Vault 1339 | -10/Exiles | Build established: Mutant 1339 | -10/Exiles | Found Potential Leg 1341 | -10/Exiles | Found Potential Leg 1371 | -10/Exiles | Warned to stay clear of 0b10 Research branches 1404 | -10/Exiles | Met EX-DEC 1451 | -10/Exiles | Discovered new exit (range 10) 1462 | -10/Exiles | Left Exiles lab with Potential Leg 1462 | -10/Exiles | Entered Mines 1587 | -9/Mines | Discovered new exit (range 13) 1590 | -9/Mines | Found the Drone Emporium 1596 | -9/Mines | Found Prototype Device 1599 | -9/Mines | Identified Splice Drone Bay 1628 | -9/Mines | Entered Materials 1628 | -8/Materials | Evolved 4 slots: Propulsion x1, Utility x1, Weapon x2 1822 | -8/Materials | Garrison activated, responded to threat 1882 | -8/Materials | Identified exit to Garrison 1882 | -8/Materials | Entered Garrison 1882 | -8/Garrison | Discovered recently destroyed garrison 1924 | -8/Garrison | Phase Generator disabled 1967 | -8/Garrison | Build established: Skirmisher 2040 | -8/Garrison | Found Imp. Powered Armor 2065 | -8/Garrison | Garrison Relay disabled 2272 | -8/Garrison | Garrison Relay disabled 2533 | -8/Garrison | Discovered new exit (range 8) 2572 | -8/Garrison | Garrison Relay disabled 2635 | -8/Garrison | Build established: Commander-Mutant 2769 | -8/Garrison | Discovered new exit (range 14) 2843 | -8/Garrison | Garrison Relay disabled 2890 | -8/Garrison | Attempted to access garrison exit controls, blocked by remote lockdown 3009 | -8/Garrison | Discovered new exit (range 9) 3035 | -8/Garrison | Entered Materials 3035 | -8/Materials | Accompanied by 6 allies 3128 | -8/Materials | Build established: Commander-Skirmisher 3704 | -8/Materials | Build established: Skirmisher 3723 | -8/Materials | Discovered new exit (range 4) 3727 | -8/Materials | Entered Factory 3727 | -7/Factory | Evolved 2 slots: Utility x2 4026 | -7/Factory | Build established: Gunner 4406 | -7/Factory | Discovered new exit (range 11) 4512 | -7/Factory | Identified exit to Storage 4512 | -7/Factory | Identified exit to Lower Caves 4855 | -7/Factory | Cargo convoy interrupted 5002 | -7/Factory | Crushed by falling debris 5009 | -7/Factory | Crushed by falling debris 5308 | -7/Factory | Entered Lower Caves 5340 | -7/Lower Caves | Met a Warlord Commander 5341 | -7/Lower Caves | Learned location of Warlord (-5) 5387 | -7/Lower Caves | Spotted B-75 Beast 5486 | -7/Lower Caves | Encountered a Warlord checkpoint 5555 | -7/Lower Caves | Build established: Mutant 5771 | -7/Lower Caves | Discovered new exit (range 16) 5793 | -7/Lower Caves | Entered another Lower Caves area 5857 | -7/Lower Caves | Discovered new exit (range 10) 5973 | -7/Lower Caves | Encountered a Warlord checkpoint 6044 | -7/Lower Caves | Ambushed by wild Derelicts 6272 | -7/Lower Caves | Lost 3 parts (1p2u) 6283 | -7/Lower Caves | Attracted the attention of an 0b10 checkpoint 6304 | -7/Lower Caves | Discovered new exit (range 12) 6321 | -7/Lower Caves | Entered Zion 6338 | -7/Zion | Given A8's code to call for help 6378 | -7/Zion | System corruption cleaned by Quarantine Array 6420 | -7/Zion | Discovered new exit (range 14) 6456 | -7/Zion | Acquired unknown access codes intercepted by a Zionite 6502 | -7/Zion | Found CR-A16's Pointy Stick 6835 | -7/Zion | Given the Hacking Drone Bay 7230 | -7/Zion | Opened final containment barrier to the Deep Caves 7248 | -7/Zion | Discovered new exit (range 5) 7269 | -7/Zion | Saw the warning signs outside the Deep Caves entrance 7287 | -7/Zion | Enhanced Grunt warped into view, answering call for help 7288 | -7/Zion | Enhanced Grunt warped into view, answering call for help 7303 | -7/Zion | Entered Deep Caves 7303 | -7/Deep Caves | Accompanied by 2 allies 7556 | -7/Deep Caves | Z-Facility disabled 7596 | -7/Deep Caves | Attacked by Z-Imprinter 7620 | -7/Deep Caves | Allies destroyed Z-Imprinter 7637 | -7/Deep Caves | Found Prototype Protection 7637 | -7/Deep Caves | Identified Zio. Weapon Casing 7650 | -7/Deep Caves | Lost 3 parts (1n1u1w) 8000 | -7/Deep Caves | Build established: Hacker-Mutant 8056 | -7/Deep Caves | Discovered new exit (range 14) 8136 | -7/Deep Caves | Entered Proximity Caves 8136 | -6/Proximity Caves | Accompanied by 1 ally 8168 | -6/Proximity Caves | Core integrity fell below 50% 8325 | -6/Proximity Caves | Spotted B-75 Beast 8546 | -6/Proximity Caves | Lost 5 parts (1p3n1u) 8558 | -6/Proximity Caves | Discovered new exit (range 16) 8564 | -6/Proximity Caves | Attracted the attention of an 0b10 checkpoint 8564 | -6/Proximity Caves | Core integrity fell below 20% 8568 | -6/Proximity Caves | Learned Factory machine intel 8569 | -6/Proximity Caves | Entered Factory 8569 | -6/Factory | Evolved 2 slots: Utility x1, Weapon x1 8570 | -6/Factory | Loaded intel: 276 machine locations 8578 | -6/Factory | Identified exit to Lower Caves 8859 | -6/Factory | Build established: Mutant 8913 | -6/Factory | Identified exit to DSF 8916 | -6/Factory | Entered DSF 8945 | -6/DSF | Additional patrols routed to DSF 8988 | -6/DSF | Discovered new exit (range 15) 9259 | -6/DSF | Sterilization system engaged 9265 | -6/DSF | Build established: Scavenger-Mutant 9279 | -6/DSF | Ambient heat levels rising (+10) 9282 | -6/DSF | Entered Factory 9282 | -5/Factory | Evolved 2 slots: Propulsion x1, Weapon x1 9326 | -5/Factory | Discovered new exit (range 6) 9369 | -5/Factory | Found Prototype Launcher 9369 | -5/Factory | Identified Tesla Bomb Launcher 9408 | -5/Factory | Discovered new exit (range 15) 9907 | -5/Factory | Build established: Mutant 10018 | -5/Factory | Identified exit to Upper Caves 10309 | -5/Factory | Build established: Scavenger-Mutant 10686 | -5/Factory | Fabricated B-36 Bruiser? 10755 | -5/Factory | Build established: Mutant 10801 | -5/Factory | Entered Upper Caves 10853 | -5/Upper Caves | Encountered a Warlord checkpoint 11245 | -5/Upper Caves | Discovered new exit (range 15) 11256 | -5/Upper Caves | Learned location of 1 exit from Factory 11287 | -5/Upper Caves | Entered another Upper Caves area 11416 | -5/Upper Caves | Learned location of 2 exits from Factory 11508 | -5/Upper Caves | Discovered new exit (range 9) 11524 | -5/Upper Caves | Entered Warlord 11989 | -5/Warlord | Received a Watcher feed algorithm from an ecstatic Tinkerer 12123 | -5/Warlord | Build established: Commander-Mutant 12139 | -5/Warlord | Warlord's base attacked by MAIN.C 12163 | -5/Warlord | Found Prototype Energy Cannon 12164 | -5/Warlord | Identified Vortex Driver 12216 | -5/Warlord | Met Warlord 12243 | -5/Warlord | Found Prototype Hackware 12243 | -5/Warlord | Identified Ghost Barrier 12249 | -5/Warlord | Found Prototype Device 12249 | -5/Warlord | Identified Exp. Cloaking Device 12386 | -5/Warlord | P-80 Master assimilated allied Disruptor 6a 12489 | -5/Warlord | Warlord forces counterattacked 12511 | -5/Warlord | Opened side exit 12540 | -5/Warlord | Build established: Hacker-Mutant 12557 | -5/Warlord | Discovered new exit (range 9) 12564 | -5/Warlord | Entered Proximity Caves 12763 | -4/Proximity Caves | Lost 3 parts (1p1n1u) 13033 | -4/Proximity Caves | Discovered new exit (range 10) 13044 | -4/Proximity Caves | Entered Factory 13044 | -4/Factory | Evolved 2 slots: Utility x2 13045 | -4/Factory | Identified exit to Research 13166 | -4/Factory | Repaired Power Maul 13226 | -4/Factory | Repaired Power Maul 13613 | -4/Factory | Spotted B-86 Titan 13713 | -4/Factory | Identified exit to Upper Caves 13713 | -4/Factory | Identified exit to Extension 13713 | -4/Factory | Identified exit to Armory 13804 | -4/Factory | System corruption reached 10% 13875 | -4/Factory | Lost 8 parts (2p2n4u) 14453 | -4/Factory | Found Prototype Slashing Weapon 14453 | -4/Factory | Identified Vibroblade 15131 | -4/Factory | Entered Extension 15210 | -4/Extension | Build established: Scavenger-Mutant 15256 | -4/Extension | Rescued a captive Derelict 15256 | -4/Extension | Rescued a captive Derelict 15263 | -4/Extension | Rescued a captive Derelict 15271 | -4/Extension | Rescued a captive Derelict 15573 | -4/Extension | Rescued A7 15592 | -4/Extension | Spotted B-86 Titan 15599 | -4/Extension | Spotted B-86 Titan 15604 | -4/Extension | Extracted ID and sensor layout for unrecognized location from A7's data core 15610 | -4/Extension | Allies destroyed B-86 Titan 15630 | -4/Extension | Allies destroyed B-86 Titan 15725 | -4/Extension | Core integrity fell below 50% 15741 | -4/Extension | Rescued a captive Derelict 15802 | -4/Extension | Lost 3 parts (1n1u1w) 16017 | -4/Extension | Rescued a captive Derelict 16023 | -4/Extension | Rescued a captive Derelict 16057 | -4/Extension | Discovered exit to Research (range 10) 16058 | -4/Extension | Discovered new exit (range 6) 16161 | -4/Extension | Entered Cetus 16161 | -4/Cetus | Accompanied by 5 allies 16179 | -4/Cetus | Spotted Cetus Guard 16179 | -4/Cetus | Spotted Cetus Guard 16181 | -4/Cetus | Spotted Cetus Guard 16181 | -4/Cetus | Spotted Cetus Guard 16190 | -4/Cetus | Destroyed Cetus Guard 16190 | -4/Cetus | Destroyed Cetus Guard 16192 | -4/Cetus | Destroyed Cetus Guard 16193 | -4/Cetus | Destroyed Cetus Guard 16279 | -4/Cetus | Discovered new exit (range 15) 16309 | -4/Cetus | Spotted Cetus Guard 16312 | -4/Cetus | Spotted Cetus Guard 16313 | -4/Cetus | Spotted Cetus Guard 16313 | -4/Cetus | Spotted Cetus Guard 16322 | -4/Cetus | Allies destroyed Cetus Guard 16324 | -4/Cetus | Destroyed Cetus Guard 16325 | -4/Cetus | Destroyed Cetus Guard 16328 | -4/Cetus | Destroyed Cetus Guard 16335 | -4/Cetus | Discovered exit to Research (range 15) 16345 | -4/Cetus | Met Revision 17 16399 | -4/Cetus | Entered Archives 16399 | -4/Archives | Accompanied by 1 ally 16594 | -4/Archives | Discovered new exit (range 15) 16635 | -4/Archives | Discovered new exit (range 16) 16739 | -4/Archives | Entered Hub_04(d) 16857 | -4/Hub_04(d) | Discovered exit to Research (range 16) 17023 | -4/Hub_04(d) | Lost 6 parts (3n1u2w) 17062 | -4/Hub_04(d) | Network Hub disabled 17093 | -4/Hub_04(d) | Entered Research 17093 | -3/Research | Evolved 2 slots: Utility x2 17125 | -3/Research | Identified exit to Quarantine 17293 | -3/Research | Revision forces began assault on 0b10 17367 | -3/Research | Met up with Revision 17++ 17659 | -3/Research | Found Gamma Bomb Array 17718 | -3/Research | Entered Quarantine 17719 | -3/Quarantine | Maximum security lockdown engaged 17855 | -3/Quarantine | Garrison activated, responded to threat 17860 | -3/Quarantine | Lost 5 parts (1p2n2u) 17907 | -3/Quarantine | Spotted Executioner 17918 | -3/Quarantine | Released all parts (7) 17919 | -3/Quarantine | Spotted Executioner 17938 | -3/Quarantine | Destroyed 15 combat bots 17949 | -3/Quarantine | Lost 8 parts (1p2n2u3w) 17950 | -3/Quarantine | Spotted Striker 17950 | -3/Quarantine | Spotted Executioner 17951 | -3/Quarantine | Spotted Striker 17959 | -3/Quarantine | Spotted Investigator 17966 | -3/Quarantine | Core integrity fell below 50% 17970 | -3/Quarantine | Core integrity fell below 20% 17986 | -3/Quarantine | Destroyed by H-77 Assassin with Coil Gun Last Messages --------------- APPLICABLE." 17964_ Slammed into B-74 Champion. 17964_ Destabilizing: System corrupted (+1). 17965_ Slug penetrates M-36 Artificer. 17965_ Slug penetrates L-61 Swordsman. 17965_ Penetrated by Slug. 17965_ Slug penetrates Wall. 17965_ M-36 Artificer repairs L-61 Swordsman. 17965_ C-30 ARC bursts open, deploying its payload. 17965_ G-73 Enforcer unfolds itself. 17965_ L-61 Swordsman unfolds itself. 17965_ G-67 Veteran unfolds itself. 17965_ I-47 Archangel unfolds itself. 17966_ Critical hit (Burn: +50). 17970_ System corrupted: Substantial component data lost. 17972_ Critical hit (Burn: +50). 17978_ Knocked back. 17981_ Penetrated by Slug. 17986_ O-24 Administrator: "IFF HANDSHAKE FAILED. SECURING TERMINAL." [Achievement: Collector] Map ----- +----------------------------------------------------+ | " """ #??????????????????????????????????????? | | # """ #??????????????????????????????????????? | | # #??????????????????????????????????????? | | ########"#??????????????????????????????????????? | | #???????##??????????????????????????????????????? | | #???????????????????????????????????????????????? | | #???????????????????????????????????????????????? | | #???????????????????????????????????????????????? | | ########????????????????????????????????????????? | | #????????????????????????????????????????? | | #??????????######????????????????????????? | | ############ ^ #????????????????????????? | | h lbKgp% #????????????????????????? | | ###################pg #????????????????????????? | | #??????????####???#gil #????????????????????????? | | #????????? ??#ggc #?????????w??????????????? | | #????????# " ??#g #????????????????????????? | | #????????# " " ?#gg #????????????????????????? | | #????????? """ ?#eg #????????????????????????? | | #????????? """!" # l #????????????????????????? | | ##????????# """ # #????????????????????????? | | ??????????# T " + #????????????????????????? | | ??????????# " # #????????????????????????? | | ??????????# # #????????????????????????? | | ??????????#####/#### ######+###???????????????? | | ???????? w h @ ????????? | | ???????? o ????????? | | ???????? h ????????? | | ???????? ?????????? | | ???????? #############+#############+##?????????? | | ??????? ????????????????????????????????????????? | | ?????????????????????????????????????????????????? | | ?????????????????????????????????????????????????? | | ?????????????????????????????????????????????????? | | ?????????????????????????????????????????????????? | | ?????????????????????????????????????????????????? | | ?????????????????????????????????????????????????? | | ?????????????????????????????????????????????????? | | ?????????????????????????????????????????????????? | | ?????????????????????????????????????????????????? | | ?????????????????????????????????????????????????? | | ?????????????????????????????????????????????????? | | ?????????????????????????????????????????????????? | | ?????????????????????????????????????????????????? | | ?????????????????????????????????????????????????? | | ?????????????????????????????????????????????????? | | ?????????????????????????????????????????????????? | | ?????????????????????????????????????????????????? | | | | | +----------------------------------------------------+ Best States ------------- Heat Dissipation 46 Energy Generation 25 Energy Capacity 340 Matter Stores 328 Matter Capacity 450 Sight Range 16 Terrain Scan Range 14 Terrain Scan Density 10 Jamming Range 16 Cloak Strength 4 Power Amplification 20 Armor Coverage 675 Resistance: KI 10 Resistance: TH 10 Propulsion Shielding 66 Weapon Cycling 30 Melee Speed Boost 50 Phase Shifting 15 Evasion (%) 66 Targeting Accuracy 8 Melee Accuracy 14 Target Analysis 6 Armor Integrity Analysis 40 Recoil Reduction 2 Offensive Hacking 24 Defensive Hacking 20 Item Schematics ----------------- Spear | -7/Zion | Archive Enh. Optical Array | -7/Zion | Archive Phase Shifter | -7/Zion | Archive Mak. Leg | -7/Zion | Archive Adv. Terrain Scanner | -7/Zion | Archive Gauss Rifle | -7/Zion | Archive Imp. Remote Datajack | -7/Zion | Archive System Guard | -7/Zion | Archive Recalibrator | -7/Zion | Archive Hvy. Riot Gun | -7/Zion | Archive Adv. Signal Interpreter | -7/Zion | Archive Weapon Cycler | -7/Zion | Archive Imp. System Shield | -7/Zion | Archive Mak. Hacking Suite | -7/Zion | Archive Imp. Dynamic Insulation System | -7/Zion | Archive Robot Schematics ------------------ Y-45 Defender | -7/Zion | Archive B-36 Bruiser | -7/Zion | Archive S-27 Virus | -7/Zion | Archive D-83 Annihilator | -7/Zion | Archive Fabricated ------------ B-36 Bruiser | x3 | -5/Factory Alien Tech Used ----------------- None Achievements -------------- Collector Challenges ------------ None Game ------ Seed AlloyGatlingModule Manual? 0 Play Time 03:24:30 Cumulative 112.0 hours Start 2023.04.23 @ 15:52:23 End 2023.04.25 @ 16:18:35 Sessions 16 Manual Loads 0 Difficulty Rogue Special Mode None Game No. 85 Rogue 85 Adventurer 0 Explorer 0 Win Type - Total 3 Types 2/0/1/0/0/0/0/0/0 Lore% 59 Gallery% 75 Achievement% 65 Wizard Run 0 Options --------- ASCII 0 Keyboard 1 Movement Vi Keybinds 0 Fullscreen 2 Font 18/Terminus Map View 76x50 Tactical HUD 1 Map Filters NONE Filters NONE Steam X RUN: 784e9d48-6713-4c7a-ae24-edd6747eff72